[Event "NOR-ch Various 2019"]
[Site "Larvik"]
[Date "2019.07.11"]
[Round "7.21"]
[White "Kizatbay, Abyl"]
[Black "Sebastian, Andreas"]
[Result "1-0"]
[ECO "B40"]
[WhiteElo "2216"]
[BlackElo "1911"]
[Annotator "NA"]
[PlyCount "77"]
[EventDate "2019.07.06"]
[EventType "swiss"]
[EventCountry "NOR"]
[SourceTitle "playchess.com"]
[Source "ChessBase"]
[SourceQuality "1"]
[TimeControl "40/5400+30:1800+30"]

1. e4 {[%emt 0:03:56]} c5 {[%emt 0:00:00]} 2. Nf3 {[%emt 0:02:11]} e6 {[%emt 0:00:00]} 3. d3 {[%emt 0:02:46]} Nc6 {[%emt 0:01:26]} 4. g3 {[%emt 0:00:14]} e5 {[%emt 0:05:33]} 5. Bg2 {[%emt 0:01:33]} Be7 {[%emt 0:05:08]} 6. c3 {[%emt 0:01:51]} d6 {[%emt 0:00:35]} 7. Qe2 {[%emt 0:07:11]} h5 {[%emt 0:04:11]} 8. Be3 {[%emt 0:08:07]} h4 {[%emt 0:01:10]} 9. Nxh4 {[%emt 0:02:20]} Bxh4 {[%emt 0:00:47]} 10. gxh4 {[%emt 0:00:38]} Qxh4 {[%emt 0:01:31]} 11. Na3 {[%emt 0:11:00]} Bg4 {[%emt 0:02:54]} 12. Qc2 {[%emt 0:02:36]} Nf6 {[%emt 0:10:33]} 13. Qb3 {[%emt 0:10:38]} O-O-O {[%emt 0:12:32]} 14. Qxf7 {[%emt 0:02:27]} Rdf8 {[%emt 0:04:06]} 15. Qg6 {[%emt 0:05:18]} Nh7 {[%emt 0:12:26]} 16. Nb5 {[%emt 0:02:20]} Nf6 {[%emt 0:10:22]} 17. Nxd6+ {[%emt 0:06:18]} Kb8 {[%emt 0:01:27]} 18. h3 {[%emt 0:05:06]} Rd8 {[%emt 0:03:48]} 19. Bxc5 {[%emt 0:05:21]} Nd7 {[%emt 0:05:37]} 20. Be3 {[%emt 0:02:40]} Nf6 {[%emt 0:02:14]} 21. Bc5 {[%emt 0:04:34]} b6 {[%emt 0:02:47]} 22. Ba3 {[%emt 0:00:30]} Rh6 {[%emt 0:02:37]} 23. Qf7 {[%emt 0:01:18]} Rd7 {[%emt 0:00:18]} 24. Qf8+ {[%emt 0:01:34]} Rd8 {[%emt 0:00:28]} 25. Qf7 {[%emt 0:00:13]} Rd7 {[%emt 0:00:04]} 26. Qc4 {[%emt 0:00:15]} Rc7 {[%emt 0:06:09]} 27. Nb5 {[%emt 0:00:15]} Be6 {[%emt 0:03:20]} 28. Qxe6 {[%emt 0:02:17]} Nxe4 {[%emt 0:00:03]} 29. Qf5 {[%emt 0:02:58]} Rf6 {[%emt 0:01:53]} 30. Qxe4 {[%emt 0:01:04]} Qxf2+ {[%emt 0:00:03]} 31. Kd1 {[%emt 0:00:06]} Rd7 {[%emt 0:00:16]} 32. Rf1 {[%emt 0:01:25]} Rxd3+ {[%emt 0:00:31]} 33. Qxd3 {[%emt 0:00:16]} Qxg2 {[%emt 0:00:05]} 34. Rxf6 {[%emt 0:00:40]} gxf6 {[%emt 0:00:14]} 35. Qd6+ {[%emt 0:01:42]} Kb7 {[%emt 0:00:07]} 36. Qd7+ {[%emt 0:00:41]} Ka6 {[%emt 0:00:09]} 37. Nc7+ {[%emt 0:00:11]} Kb7 {[%emt 0:00:46]} 38. Nd5+ {[%emt 0:01:17]} Ka6 {[%emt 0:00:08]} 39. Qxc6 {[%emt 0:00:29]} 1-0

[Event "NOR-ch Various 2019"]
[Site "Larvik"]
[Date "2019.07.11"]
[Round "7.22"]
[White "Tunsjo, Axel"]
[Black "Valvag, Torbjorn"]
[Result "0-1"]
[ECO "B50"]
[WhiteElo "2039"]
[BlackElo "1912"]
[Annotator "NA"]
[PlyCount "114"]
[EventDate "2019.07.06"]
[EventType "swiss"]
[EventCountry "NOR"]
[SourceTitle "playchess.com"]
[Source "ChessBase"]
[SourceQuality "1"]
[TimeControl "40/5400+30:1800+30"]

1. e4 {[%emt 0:00:00]} c5 {[%emt 0:00:00]} 2. Nf3 {[%emt 0:00:00]} Nc6 {[%emt 0:00:00]} 3. b3 {[%emt 0:01:34]} d6 {[%emt 0:06:59]} 4. Bb2 {[%emt 0:00:29]} e5 {[%emt 0:00:35]} 5. Bd3 {[%emt 0:09:41]} Be7 {[%emt 0:00:16]} 6. O-O {[%emt 0:00:20]} Nf6 {[%emt 0:00:14]} 7. c3 {[%emt 0:01:44]} O-O {[%emt 0:00:29]} 8. Bc2 {[%emt 0:00:55]} Bg4 {[%emt 0:03:02]} 9. Re1 {[%emt 0:04:09]} Qc7 {[%emt 0:03:04]} 10. Na3 {[%emt 0:16:45]} a6 {[%emt 0:00:04]} 11. Nc4 {[%emt 0:00:47]} b5 {[%emt 0:00:17]} 12. Ne3 {[%emt 0:00:09]} Be6 {[%emt 0:08:27]} 13. d4 {[%emt 0:01:48]} cxd4 {[%emt 0:00:25]} 14. cxd4 {[%emt 0:00:51]} exd4 {[%emt 0:00:07]} 15. Nxd4 {[%emt 0:00:24]} Nxd4 {[%emt 0:03:29]} 16. Qxd4 {[%emt 0:01:37]} Qa7 {[%emt 0:03:41]} 17. Qd3 {[%emt 0:00:22]} Nd7 {[%emt 0:02:11]} 18. e5 {[%emt 0:12:22]} g6 {[%emt 0:02:06]} 19. exd6 {[%emt 0:01:49]} Bf6 {[%emt 0:00:52]} 20. Bxf6 {[%emt 0:00:57]} Nxf6 {[%emt 0:00:05]} 21. Rad1 {[%emt 0:03:46]} Rac8 {[%emt 0:00:29]} 22. a4 {[%emt 0:12:17]} Qb6 {[%emt 0:02:16]} 23. Qd4 {[%emt 0:01:52]} Qxd4 {[%emt 0:00:56]} 24. Rxd4 {[%emt 0:00:04]} Rfd8 {[%emt 0:01:22]} 25. axb5 {[%emt 0:00:31]} axb5 {[%emt 0:00:22]} 26. Bd3 {[%emt 0:02:48]} Rb8 {[%emt 0:04:27]} 27. b4 {[%emt 0:10:18]} Rb6 {[%emt 0:02:30]} 28. Rc1 {[%emt 0:01:43]} Rdxd6 {[%emt 0:00:49]} 29. Rxd6 {[%emt 0:00:13]} Rxd6 {[%emt 0:00:05]} 30. Bxb5 {[%emt 0:00:08]} Rb6 {[%emt 0:00:04]} 31. Rc5 {[%emt 0:01:08]} Ne4 {[%emt 0:00:16]} 32. Re5 {[%emt 0:06:11]} Nd6 {[%emt 0:02:52]} 33. Bd3 {[%emt 0:01:56]} Rxb4 {[%emt 0:00:23]} 34. h3 {[%emt 0:00:42]} Kg7 {[%emt 0:00:47]} 35. Kh2 {[%emt 0:00:55]} h5 {[%emt 0:00:46]} 36. Ra5 {[%emt 0:01:43]} Nc4 {[%emt 0:04:39]} 37. Bxc4 {[%emt 0:01:49]} Bxc4 {[%emt 0:00:07]} 38. g4 {[%emt 0:00:46]} hxg4 {[%emt 0:00:17]} 39. hxg4 {[%emt 0:00:05]} Be6 {[%emt 0:00:11]} 40. Kg3 {[%emt 0:00:11]} Rd4 {[%emt 0:00:38]} 41. f4 {[%emt 0:33:12]} Rd3 {[%emt 0:34:48]} 42. Kf2 {[%emt 0:00:51]} Rxe3 {[%emt 0:03:46]} 43. Kxe3 {[%emt 0:00:05]} Bxg4 {[%emt 0:00:03]} 44. Ke4 {[%emt 0:01:23]} Be6 {[%emt 0:01:36]} 45. Ke5 {[%emt 0:00:08]} Bf5 {[%emt 0:00:05]} 46. Ra6 {[%emt 0:00:32]} Be6 {[%emt 0:02:50]} 47. Ra7 {[%emt 0:00:00]} Bf5 {[%emt 0:00:00]} 48. Re7 {[%emt 0:00:00]} Be6 {[%emt 0:00:00]} 49. Re8 {[%emt 0:00:00]} Bf5 {[%emt 0:00:00]} 50. Kd6 {[%emt 0:00:00]} Kf6 {[%emt 0:00:00]} 51. Re5 {[%emt 0:00:00]} Be6 {[%emt 0:00:00]} 52. Kc5 {[%emt 0:00:00]} Bf5 {[%emt 0:00:00]} 53. Kd4 {[%emt 0:00:00]} Be6 {[%emt 0:00:00]} 54. Ke4 {[%emt 0:00:00]} Bf5+ {[%emt 0:00:00]} 55. Rxf5+ {[%emt 0:00:00]} gxf5+ {[%emt 0:00:00]} 56. Kd5 {[%emt 0:00:00]} Kg7 {[%emt 0:00:00]} 57. Kd6 {[%emt 0:00:00]} Kh6 {[%emt 0:00:00]} 0-1

[Event "NOR-ch Various 2019"]
[Site "Larvik"]
[Date "2019.07.11"]
[Round "7.23"]
[White "Nordquelle, Amelia"]
[Black "Austad, Eirik"]
[Result "1/2-1/2"]
[ECO "E70"]
[WhiteElo "1648"]
[BlackElo "1741"]
[Annotator "NA"]
[PlyCount "145"]
[EventDate "2019.07.06"]
[EventType "swiss"]
[EventCountry "NOR"]
[SourceTitle "playchess.com"]
[Source "ChessBase"]
[SourceQuality "1"]
[TimeControl "40/5400+30:1800+30"]

1. d4 {[%emt 0:00:00]} Nf6 {[%emt 0:00:00]} 2. c4 {[%emt 0:00:30]} g6 {[%emt 0:00:52]} 3. Nc3 {[%emt 0:07:14]} Bg7 {[%emt 0:01:54]} 4. e4 {[%emt 0:00:37]} d6 {[%emt 0:00:22]} 5. Bd3 {[%emt 0:01:33]} O-O {[%emt 0:03:50]} 6. Nge2 {[%emt 0:01:44]} Na6 {[%emt 0:02:00]} 7. a3 {[%emt 0:04:23]} c5 {[%emt 0:03:12]} 8. d5 {[%emt 0:01:15]} e6 {[%emt 0:03:51]} 9. O-O {[%emt 0:03:00]} exd5 {[%emt 0:00:47]} 10. exd5 {[%emt 0:01:45]} Ng4 {[%emt 0:06:12]} 11. f4 {[%emt 0:07:17]} Nc7 {[%emt 0:12:17]} 12. h3 {[%emt 0:05:00]} Nh6 {[%emt 0:01:02]} 13. Ne4 {[%emt 0:18:23]} Nf5 {[%emt 0:05:45]} 14. Rb1 {[%emt 0:07:43]} b5 {[%emt 0:07:03]} 15. b4 {[%emt 0:01:47]} bxc4 {[%emt 0:02:55]} 16. Bxc4 {[%emt 0:00:33]} Re8 {[%emt 0:02:29]} 17. N2c3 {[%emt 0:02:09]} Bd4+ {[%emt 0:06:49]} 18. Kh2 {[%emt 0:00:25]} Rb8 {[%emt 0:06:08]} 19. Qd3 {[%emt 0:03:06]} Bxc3 {[%emt 0:03:13]} 20. Nxc3 {[%emt 0:00:14]} Nd4 {[%emt 0:03:36]} 21. bxc5 {[%emt 0:03:29]} Rxb1 {[%emt 0:00:08]} 22. Qxb1 {[%emt 0:00:10]} dxc5 {[%emt 0:00:36]} 23. Bb2 {[%emt 0:03:00]} Bf5 {[%emt 0:02:40]} 24. Qd1 {[%emt 0:01:12]} Be4 {[%emt 0:04:26]} 25. Re1 {[%emt 0:00:46]} Bc2 {[%emt 0:05:23]} 26. Qd2 {[%emt 0:03:25]} Rxe1 {[%emt 0:00:40]} 27. Qxe1 {[%emt 0:00:12]} Qd6 {[%emt 0:00:31]} 28. Qe5 {[%emt 0:01:17]} Qb6 {[%emt 0:02:55]} 29. d6 {[%emt 0:02:33]} Qxb2 {[%emt 0:02:20]} 30. dxc7 {[%emt 0:00:44]} Bf5 {[%emt 0:00:35]} 31. Qxf5 {[%emt 0:01:05]} Nxf5 {[%emt 0:01:31]} 32. c8=Q+ {[%emt 0:00:23]} Kg7 {[%emt 0:00:14]} 33. Qd7 {[%emt 0:09:51]} Qxc3 {[%emt 0:01:42]} 34. Qxf7+ {[%emt 0:00:08]} Kh6 {[%emt 0:00:10]} 35. Qf8+ {[%emt 0:00:54]} Qg7 {[%emt 0:01:52]} 36. Qxc5 {[%emt 0:00:45]} Qc3 {[%emt 0:02:29]} 37. Qf8+ {[%emt 0:00:10]} Qg7 {[%emt 0:01:21]} 38. Qxg7+ {[%emt 0:01:59]} Kxg7 {[%emt 0:00:12]} 39. g4 {[%emt 0:01:07]} Ne3 {[%emt 0:00:25]} 40. Bb3 {[%emt 0:00:45]} Nf1+ {[%emt 0:01:46]} 41. Kg2 {[%emt 0:30:40]} Nd2 {[%emt 0:30:12]} 42. Ba2 {[%emt 0:03:46]} Ne4 {[%emt 0:01:50]} 43. Kf3 {[%emt 0:01:17]} Nc3 {[%emt 0:00:00]} 44. Bb3 {[%emt 0:00:00]} Nb5 {[%emt 0:00:00]} 45. Ke4 {[%emt 0:00:00]} Nxa3 {[%emt 0:00:00]} 46. Ke5 {[%emt 0:00:00]} Nb5 {[%emt 0:00:00]} 47. Ba4 {[%emt 0:00:00]} Nc3 {[%emt 0:00:00]} 48. Bb3 {[%emt 0:00:00]} a5 {[%emt 0:00:00]} 49. Kd4 {[%emt 0:00:00]} Ne2+ {[%emt 0:00:00]} 50. Ke3 {[%emt 0:00:00]} Nc3 {[%emt 0:00:00]} 51. Kd3 {[%emt 0:00:00]} Nb5 {[%emt 0:00:00]} 52. Kc4 {[%emt 0:00:00]} Nd6+ {[%emt 0:00:00]} 53. Kd5 {[%emt 0:00:00]} Nb5 {[%emt 0:00:00]} 54. Kc5 {[%emt 0:00:00]} Nc3 {[%emt 0:00:00]} 55. Be6 {[%emt 0:00:00]} a4 {[%emt 0:00:00]} 56. Kd4 {[%emt 0:02:08]} Ne2+ {[%emt 0:00:00]} 57. Ke3 {[%emt 0:01:59]} Nc3 {[%emt 0:00:00]} 58. Kd3 {[%emt 0:00:11]} Nb5 {[%emt 0:00:00]} 59. Kc4 {[%emt 0:01:08]} Nd6+ {[%emt 0:00:00]} 60. Kb4 {[%emt 0:01:03]} Kf6 {[%emt 0:00:15]} 61. Bd7 {[%emt 0:01:33]} h6 {[%emt 0:01:17]} 62. Bxa4 {[%emt 0:00:44]} g5 {[%emt 0:00:24]} 63. Kc5 {[%emt 0:03:45]} Ne4+ {[%emt 0:00:18]} 64. Kd4 {[%emt 0:00:12]} Nf2 {[%emt 0:00:27]} 65. f5 {[%emt 0:00:05]} Nxh3 {[%emt 0:00:45]} 66. Ke4 {[%emt 0:00:14]} Nf4 {[%emt 0:00:16]} 67. Be8 {[%emt 0:00:12]} Nh3 {[%emt 0:00:37]} 68. Bh5 {[%emt 0:00:11]} Nf4 {[%emt 0:00:18]} 69. Be8 {[%emt 0:00:16]} Nh3 {[%emt 0:00:11]} 70. Kd5 {[%emt 0:01:32]} Nf4+ {[%emt 0:00:10]} 71. Ke4 {[%emt 0:01:05]} Nh3 {[%emt 0:00:09]} 72. Kd5 {[%emt 0:00:42]} Nf4+ {[%emt 0:00:14]} 73. Ke4 {[%emt 0:00:10]} 1/2-1/2

[Event "NOR-ch Various 2019"]
[Site "Larvik"]
[Date "2019.07.11"]
[Round "7.24"]
[White "Olsen, William Alexander"]
[Black "Digernes, Mikael"]
[Result "1-0"]
[ECO "E62"]
[WhiteElo "1764"]
[BlackElo "1560"]
[Annotator "NA"]
[PlyCount "109"]
[EventDate "2019.07.06"]
[EventType "swiss"]
[EventCountry "NOR"]
[SourceTitle "playchess.com"]
[Source "ChessBase"]
[SourceQuality "1"]
[TimeControl "40/5400+30:1800+30"]

1. Nf3 {[%emt 0:00:00]} Nf6 {[%emt 0:00:00]} 2. d4 {[%emt 0:00:00]} g6 {[%emt 0:00:00]} 3. g3 {[%emt 0:00:00]} Bg7 {[%emt 0:00:00]} 4. Bg2 {[%emt 0:00:00]} d6 {[%emt 0:00:02]} 5. O-O {[%emt 0:00:07]} O-O {[%emt 0:00:13]} 6. c4 {[%emt 0:01:11]} c6 {[%emt 0:01:01]} 7. Nc3 {[%emt 0:00:26]} Re8 {[%emt 0:01:22]} 8. Qc2 {[%emt 0:04:58]} Qc7 {[%emt 0:07:56]} 9. b3 {[%emt 0:02:35]} e5 {[%emt 0:02:25]} 10. e4 {[%emt 0:00:53]} Nh5 {[%emt 0:02:47]} 11. dxe5 {[%emt 0:01:05]} dxe5 {[%emt 0:03:38]} 12. Bb2 {[%emt 0:10:51]} f5 {[%emt 0:06:02]} 13. Rae1 {[%emt 0:02:05]} f4 {[%emt 0:05:28]} 14. Ne2 {[%emt 0:00:34]} Qe7 {[%emt 0:15:39]} 15. gxf4 {[%emt 0:07:59]} Nxf4 {[%emt 0:02:15]} 16. Nxf4 {[%emt 0:00:15]} exf4 {[%emt 0:00:08]} 17. Bxg7 {[%emt 0:00:41]} Qxg7 {[%emt 0:00:29]} 18. Qd2 {[%emt 0:07:00]} g5 {[%emt 0:08:13]} 19. Qd4 {[%emt 0:00:24]} g4 {[%emt 0:03:02]} 20. Qxg7+ {[%emt 0:00:10]} Kxg7 {[%emt 0:00:07]} 21. Nd4 {[%emt 0:00:25]} f3 {[%emt 0:00:54]} 22. Bh1 {[%emt 0:00:01]} Na6 {[%emt 0:03:37]} 23. h3 {[%emt 0:01:23]} h5 {[%emt 0:05:53]} 24. Re3 {[%emt 0:04:56]} Re5 {[%emt 0:05:56]} 25. Kh2 {[%emt 0:05:04]} Bd7 {[%emt 0:05:31]} 26. Rd1 {[%emt 0:01:59]} Rae8 {[%emt 0:04:32]} 27. Nxf3 {[%emt 0:01:46]} R5e7 {[%emt 0:05:50]} 28. Ng5 {[%emt 0:02:17]} Kg6 {[%emt 0:01:21]} 29. h4 {[%emt 0:00:18]} Nc5 {[%emt 0:03:52]} 30. Rd6+ {[%emt 0:02:47]} Kg7 {[%emt 0:00:36]} 31. f4 {[%emt 0:02:26]} gxf3 {[%emt 0:01:16]} 32. Bxf3 {[%emt 0:00:20]} Bg4 {[%emt 0:01:32]} 33. Bxg4 {[%emt 0:00:37]} hxg4 {[%emt 0:00:05]} 34. Rd4 {[%emt 0:00:13]} Nd7 {[%emt 0:01:35]} 35. Kg3 {[%emt 0:00:30]} Ne5 {[%emt 0:00:41]} 36. Rd6 {[%emt 0:00:47]} a5 {[%emt 0:03:16]} 37. a3 {[%emt 0:01:11]} a4 {[%emt 0:00:20]} 38. c5 {[%emt 0:01:56]} axb3 {[%emt 0:00:45]} 39. Rxb3 {[%emt 0:00:15]} Nc4 {[%emt 0:00:36]} 40. Rd4 {[%emt 0:00:12]} Ne5 {[%emt 0:00:19]} 41. Rdb4 {[%emt 0:30:52]} Rb8 {[%emt 0:01:07]} 42. a4 {[%emt 0:00:00]} Kg6 {[%emt 0:02:19]} 43. a5 {[%emt 0:00:00]} Ra8 {[%emt 0:02:07]} 44. Rxb7 {[%emt 0:00:00]} Rxb7 {[%emt 0:02:28]} 45. Rxb7 {[%emt 0:00:00]} Rxa5 {[%emt 0:00:16]} 46. Re7 {[%emt 0:00:00]} Rxc5 {[%emt 0:05:05]} 47. Kf4 {[%emt 0:00:00]} Nd3+ {[%emt 0:01:04]} 48. Kxg4 {[%emt 0:00:00]} Rc4 {[%emt 0:01:41]} 49. h5+ {[%emt 0:00:00]} Kf6 {[%emt 0:00:26]} 50. Re6+ {[%emt 0:00:00]} Kg7 {[%emt 0:00:20]} 51. h6+ {[%emt 0:00:00]} Kf8 {[%emt 0:02:23]} 52. h7 {[%emt 0:00:00]} Kg7 {[%emt 0:00:52]} 53. Re7+ {[%emt 0:00:00]} Kg6 {[%emt 0:00:30]} 54. h8=Q {[%emt 0:00:00]} Rxe4+ {[%emt 0:00:21]} 55. Nxe4 {[%emt 0:00:00]} 1-0

[Event "NOR-ch Various 2019"]
[Site "Larvik"]
[Date "2019.07.11"]
[Round "7.25"]
[White "Tunsjo, Felix"]
[Black "Stromhaug, Kristoffer Wang"]
[Result "0-1"]
[ECO "B34"]
[WhiteElo "1196"]
[BlackElo "1566"]
[Annotator "NA"]
[PlyCount "116"]
[EventDate "2019.07.06"]
[EventType "swiss"]
[EventCountry "NOR"]
[SourceTitle "playchess.com"]
[Source "ChessBase"]
[SourceQuality "1"]
[TimeControl "40/5400+30:1800+30"]

1. e4 {[%emt 0:00:00]} c5 {[%emt 0:04:02]} 2. Nf3 {[%emt 0:00:00]} Nc6 {[%emt 0:01:58]} 3. d4 {[%emt 0:01:33]} cxd4 {[%emt 0:00:00]} 4. Nxd4 {[%emt 0:00:38]} g6 {[%emt 0:00:00]} 5. Nxc6 {[%emt 0:01:34]} bxc6 {[%emt 0:00:00]} 6. Nc3 {[%emt 0:03:57]} Bg7 {[%emt 0:00:39]} 7. Bd3 {[%emt 0:05:33]} e6 {[%emt 0:04:50]} 8. O-O {[%emt 0:09:40]} Ne7 {[%emt 0:04:55]} 9. Re1 {[%emt 0:04:23]} d5 {[%emt 0:01:54]} 10. Bg5 {[%emt 0:02:47]} f6 {[%emt 0:02:04]} 11. Bc1 {[%emt 0:06:03]} O-O {[%emt 0:03:51]} 12. Bd2 {[%emt 0:10:08]} f5 {[%emt 0:02:46]} 13. e5 {[%emt 0:03:32]} Qc7 {[%emt 0:03:38]} 14. Bg5 {[%emt 0:05:12]} Rf7 {[%emt 0:03:45]} 15. f4 {[%emt 0:07:17]} Qb6+ {[%emt 0:03:15]} 16. Kh1 {[%emt 0:05:55]} Qxb2 {[%emt 0:00:22]} 17. Ne2 {[%emt 0:00:25]} Bd7 {[%emt 0:01:51]} 18. Ng3 {[%emt 0:00:31]} c5 {[%emt 0:01:53]} 19. Bf1 {[%emt 0:02:32]} Ba4 {[%emt 0:02:18]} 20. Rb1 {[%emt 0:07:08]} Qxc2 {[%emt 0:02:04]} 21. Qf3 {[%emt 0:02:02]} Bc6 {[%emt 0:03:01]} 22. Rbc1 {[%emt 0:02:19]} Qb2 {[%emt 0:04:41]} 23. Rxc5 {[%emt 0:00:56]} Qb7 {[%emt 0:00:22]} 24. h4 {[%emt 0:02:05]} h6 {[%emt 0:01:19]} 25. Bxe7 {[%emt 0:00:50]} Rxe7 {[%emt 0:00:10]} 26. Rec1 {[%emt 0:00:10]} Rc7 {[%emt 0:00:59]} 27. Bb5 {[%emt 0:00:49]} Rac8 {[%emt 0:01:09]} 28. Qc3 {[%emt 0:02:44]} Bxb5 {[%emt 0:02:40]} 29. Rxc7 {[%emt 0:01:45]} Rxc7 {[%emt 0:00:10]} 30. Qxc7 {[%emt 0:00:16]} Qxc7 {[%emt 0:00:02]} 31. Rxc7 {[%emt 0:00:09]} a6 {[%emt 0:04:34]} 32. Kg1 {[%emt 0:00:57]} Bc4 {[%emt 0:02:28]} 33. a3 {[%emt 0:00:46]} Bf8 {[%emt 0:00:44]} 34. Kf2 {[%emt 0:03:29]} Bxa3 {[%emt 0:00:29]} 35. Ne2 {[%emt 0:00:34]} Bb2 {[%emt 0:03:13]} 36. Ke3 {[%emt 0:01:20]} g5 {[%emt 0:09:10]} 37. g3 {[%emt 0:01:35]} gxf4+ {[%emt 0:01:55]} 38. gxf4 {[%emt 0:00:43]} a5 {[%emt 0:03:44]} 39. Ra7 {[%emt 0:01:42]} d4+ {[%emt 0:02:00]} 40. Nxd4 {[%emt 0:00:25]} Bd5 {[%emt 0:00:08]} 41. Rxa5 {[%emt 0:30:41]} Bc1+ {[%emt 0:31:35]} 42. Kf2 {[%emt 0:04:45]} Bxf4 {[%emt 0:00:14]} 43. Ra6 {[%emt 0:00:07]} Kf7 {[%emt 0:00:31]} 44. Ke2 {[%emt 0:00:00]} Bc4+ {[%emt 0:00:00]} 45. Kf3 {[%emt 0:00:00]} Bxa6 {[%emt 0:00:00]} 46. Kxf4 {[%emt 0:00:00]} Bc4 {[%emt 0:00:00]} 47. Nf3 {[%emt 0:00:00]} Ke7 {[%emt 0:00:00]} 48. Ke3 {[%emt 0:00:00]} Kf7 {[%emt 0:00:00]} 49. Kf4 {[%emt 0:00:00]} Kg6 {[%emt 0:00:00]} 50. Kg3 {[%emt 0:00:00]} Kh5 {[%emt 0:00:00]} 51. Kh3 {[%emt 0:00:00]} f4 {[%emt 0:00:00]} 52. Nh2 {[%emt 0:00:00]} Bd3 {[%emt 0:00:00]} 53. Nf3 {[%emt 0:00:00]} Bf5+ {[%emt 0:00:00]} 54. Kh2 {[%emt 0:00:00]} Bg4 {[%emt 0:00:00]} 55. Nd2 {[%emt 0:00:00]} Kxh4 {[%emt 0:00:00]} 56. Kg2 {[%emt 0:00:00]} Kg5 {[%emt 0:00:00]} 57. Kf2 {[%emt 0:00:34]} Kf5 {[%emt 0:00:00]} 58. Nc4 {[%emt 0:00:27]} Ke4 {[%emt 0:00:00]} 0-1

[Event "NOR-ch Various 2019"]
[Site "Larvik"]
[Date "2019.07.11"]
[Round "7.26"]
[White "Fuglestein, Sander"]
[Black "Kvendseth, Thyra"]
[Result "1-0"]
[ECO "E62"]
[WhiteElo "1997"]
[BlackElo "1967"]
[Annotator "NA"]
[PlyCount "135"]
[EventDate "2019.07.06"]
[EventType "swiss"]
[EventCountry "NOR"]
[SourceTitle "playchess.com"]
[Source "ChessBase"]
[SourceQuality "1"]
[TimeControl "40/5400+30:1800+30"]

1. d4 {[%emt 0:00:00]} Nf6 {[%emt 0:00:00]} 2. c4 {[%emt 0:00:00]} g6 {[%emt 0:00:00]} 3. Nf3 {[%emt 0:00:00]} Bg7 {[%emt 0:00:00]} 4. g3 {[%emt 0:00:00]} O-O {[%emt 0:00:00]} 5. Bg2 {[%emt 0:00:00]} d6 {[%emt 0:00:01]} 6. O-O {[%emt 0:00:00]} c6 {[%emt 0:03:28]} 7. Nc3 {[%emt 0:00:08]} a6 {[%emt 0:01:41]} 8. Re1 {[%emt 0:07:32]} Qc7 {[%emt 0:03:16]} 9. e4 {[%emt 0:05:28]} e5 {[%emt 0:00:34]} 10. h3 {[%emt 0:00:55]} b5 {[%emt 0:04:15]} 11. cxb5 {[%emt 0:11:02]} cxb5 {[%emt 0:03:15]} 12. Bg5 {[%emt 0:07:35]} Nbd7 {[%emt 0:05:16]} 13. Rc1 {[%emt 0:03:21]} Qd8 {[%emt 0:12:04]} 14. Qd2 {[%emt 0:08:02]} Bb7 {[%emt 0:03:48]} 15. b4 {[%emt 0:05:43]} Rc8 {[%emt 0:02:14]} 16. d5 {[%emt 0:09:31]} Nb6 {[%emt 0:00:52]} 17. a4 {[%emt 0:08:45]} bxa4 {[%emt 0:11:50]} 18. Qa2 {[%emt 0:01:26]} Rc4 {[%emt 0:06:11]} 19. Qa3 {[%emt 0:08:12]} Qd7 {[%emt 0:05:13]} 20. Be3 {[%emt 0:01:52]} Qd8 {[%emt 0:03:30]} 21. Nd2 {[%emt 0:01:56]} Rc8 {[%emt 0:06:50]} 22. Nxa4 {[%emt 0:02:10]} Nxa4 {[%emt 0:00:24]} 23. Qxa4 {[%emt 0:00:10]} Qd7 {[%emt 0:00:28]} 24. Qxd7 {[%emt 0:01:02]} Nxd7 {[%emt 0:00:02]} 25. Nc4 {[%emt 0:00:24]} Rb8 {[%emt 0:02:48]} 26. Nxd6 {[%emt 0:00:34]} Ba8 {[%emt 0:00:37]} 27. Bc5 {[%emt 0:04:26]} Rfd8 {[%emt 0:00:32]} 28. Nc4 {[%emt 0:02:32]} Bf8 {[%emt 0:05:24]} 29. Ne3 {[%emt 0:02:33]} Rdc8 {[%emt 0:04:05]} 30. Bxf8 {[%emt 0:00:55]} Kxf8 {[%emt 0:00:02]} 31. Bf1 {[%emt 0:00:36]} Rd8 {[%emt 0:02:12]} 32. Rb1 {[%emt 0:01:44]} Bb7 {[%emt 0:01:37]} 33. Nc4 {[%emt 0:00:27]} f5 {[%emt 0:01:49]} 34. exf5 {[%emt 0:01:34]} Bxd5 {[%emt 0:00:49]} 35. fxg6 {[%emt 0:01:35]} hxg6 {[%emt 0:01:18]} 36. Nxe5 {[%emt 0:00:55]} Nxe5 {[%emt 0:00:08]} 37. Rxe5 {[%emt 0:00:02]} Ba2 {[%emt 0:02:11]} 38. Ra1 {[%emt 0:00:48]} Bf7 {[%emt 0:00:08]} 39. Bxa6 {[%emt 0:02:28]} Rxb4 {[%emt 0:00:13]} 40. Rae1 {[%emt 0:00:37]} Rb2 {[%emt 0:00:48]} 41. Bf1 {[%emt 0:04:03]} Kg7 {[%emt 0:00:27]} 42. R5e2 {[%emt 0:01:39]} Rb3 {[%emt 0:00:27]} 43. Re7 {[%emt 0:00:34]} Rc3 {[%emt 0:01:08]} 44. Bg2 {[%emt 0:02:28]} Rd2 {[%emt 0:00:48]} 45. R7e2 {[%emt 0:01:04]} Rd4 {[%emt 0:00:25]} 46. Re3 {[%emt 0:00:20]} Rc2 {[%emt 0:00:41]} 47. R1e2 {[%emt 0:00:48]} Rc1+ {[%emt 0:00:30]} 48. Kh2 {[%emt 0:00:13]} Rcd1 {[%emt 0:00:56]} 49. g4 {[%emt 0:03:04]} Rd6 {[%emt 0:01:43]} 50. Kg3 {[%emt 0:00:42]} Rg1 {[%emt 0:01:17]} 51. Re1 {[%emt 0:00:37]} Rxe1 {[%emt 0:00:02]} 52. Rxe1 {[%emt 0:00:04]} Rd3+ {[%emt 0:00:19]} 53. Re3 {[%emt 0:01:01]} Rd4 {[%emt 0:02:21]} 54. h4 {[%emt 0:01:53]} Rb4 {[%emt 0:00:27]} 55. f4 {[%emt 0:00:47]} Rd4 {[%emt 0:00:37]} 56. Ra3 {[%emt 0:01:10]} Rb4 {[%emt 0:00:37]} 57. Bf3 {[%emt 0:01:08]} Rb2 {[%emt 0:00:42]} 58. g5 {[%emt 0:02:02]} Rd2 {[%emt 0:00:33]} 59. Ra7 {[%emt 0:00:37]} Rd3 {[%emt 0:00:16]} 60. Kf2 {[%emt 0:01:27]} Kg8 {[%emt 0:00:56]} 61. Be2 {[%emt 0:01:46]} Rc3 {[%emt 0:04:06]} 62. Ra5 {[%emt 0:01:49]} Rh3 {[%emt 0:02:08]} 63. h5 {[%emt 0:01:35]} gxh5 {[%emt 0:00:10]} 64. f5 {[%emt 0:00:37]} Kg7 {[%emt 0:02:17]} 65. Ra7 {[%emt 0:00:45]} Kg8 {[%emt 0:00:14]} 66. g6 {[%emt 0:01:13]} Bd5 {[%emt 0:01:08]} 67. Rd7 {[%emt 0:02:26]} Bb3 {[%emt 0:00:15]} 68. f6 {[%emt 0:00:54]} 1-0